bitfinex-derivatives/quotes_SOLF0:USTF0_20250307
["timestamp","ask_amount","ask_price","bid_price","bid_amount"]
[1741389952806,0.05499567,137.77,137.74,0.04607451]
[1741389955102,0.05499567,137.77,137.67,217.56]
[1741389955305,33.34,137.76,137.67,217.56]
[1741389955507,33.36,137.75,137.67,217.56]
[1741389956303,0.04618554,137.72,137.7,0.0457236]
[1741389956504,33.36,137.71,137.7,0.0457236]
[1741389958004,193.0,137.7,137.44,217.7]
[1741389958203,27.13282019,137.64,137.5,27.13282019]
[1741389958401,5.83818005,137.63,137.5,27.13282019]
[1741389958606,27.13282019,137.64,137.5,27.13282019]
[1741389958899,39.19837977,137.63,137.5,27.13282019]
[1741389959096,0.05112489,137.58,137.56,0.05136463]
[1741389959306,33.36,137.57,137.47,27.13282019]
[1741389959699,33.36,137.57,137.49,7.2752]
[1741389960105,33.36,137.57,137.47,27.13282019]
[1741389960305,33.36,137.57,137.46,1.26552357]
[1741389960507,0.05431722,137.53,137.51,0.05036732]
[1741389960910,0.05422784,137.53,137.51,0.04834364]
[1741389962207,33.38,137.52,137.45,217.7]
[1741389962597,3.9239,137.57,137.46,27.13282019]
[1741389962802,33.38,137.59,137.5,7.2743]
[1741389963108,33.38,137.59,137.5,40.6543]
[1741389963411,0.04953788,137.56,137.53,0.05123271]
[1741389963711,0.04953788,137.56,137.53,217.91155958]
[1741389964911,0.04953788,137.56,137.53,217.95903778]
[1741389965110,0.04953788,137.56,137.53,217.8957959]
[1741389966322,0.04953788,137.56,137.53,65.6888514]
[1741389967906,0.04953788,137.56,137.54,7.2725]
[1741389968412,0.04953788,137.56,137.53,65.6888514]
[1741389968712,0.04953788,137.56,137.55,7.2721]
[1741389969917,37.73607342,137.63,137.58,7.2704]
[1741389970212,7.7309,137.63,137.55,33.4]
[1741389970406,3.9239,137.63,137.55,33.4]
[1741389971008,0.04845739,137.6,137.58,0.05079943]
[1741389971411,0.04845739,137.6,137.58,7.32129943]
[1741389971611,0.04845739,137.6,137.58,0.05079943]
[1741389972409,0.04845739,137.6,137.59,7.27]
[1741389972610,4.1629,137.67,137.59,33.4]
[1741389973013,4.1629,137.67,137.61,7.2688]
[1741389973207,4.1629,137.67,137.59,33.4]
[1741389973611,37.532,137.68,137.59,33.4]
[1741389973825,0.05537881,137.64,137.62,0.0531108]
[1741389974010,41.6142,137.73,137.63,251.4]
[1741389974214,8.2142,137.73,137.63,251.4]
[1741389974615,7.2646,137.7,137.63,258.6677]
[1741389974810,60.53282019,137.71,137.63,225.2677]
[1741389975012,60.53282019,137.71,137.63,218.0]
[1741389975314,0.04706302,137.68,137.66,0.04664666]
[1741389975509,33.4,137.67,137.57,217.98]
[1741389975915,33.4,137.67,137.58,33.4]
[1741389976217,33.4,137.67,137.58,60.53282019]
[1741389976419,33.4,137.67,137.64,7.267]
[1741389976622,0.05284966,137.64,137.61,0.04836972]
[1741389976820,33.4,137.7,137.58,60.53282019]
[1741389977020,33.4,137.7,137.65,7.2666]
[1741389977517,0.04866204,137.69,137.66,0.04965508]
[1741389978623,0.04866204,137.69,137.67,7.2657]
[1741389979423,0.04866204,137.69,137.68,7.2652]
[1741389979625,0.04866204,137.69,137.66,0.04965508]
[1741389979925,0.04866204,137.69,137.67,7.2653]
[1741389980126,0.04866204,137.69,137.66,0.04965508]
[1741389980625,0.04866204,137.69,137.68,7.2652]
[1741389981619,6.204e-05,137.69,137.68,0.9981]
[1741389981821,31.0,137.68,137.42,27.13282019]
[1741389982127,27.13282019,137.6,137.43,27.13282019]
[1741389982320,27.13282019,137.57,137.44,3.9152]
[1741389982828,36.92,137.59,137.45,27.13282019]
[1741389983029,0.05566429,137.52,137.49,0.05480356]
[1741389983321,36.92,137.59,137.48,27.13282019]
[1741389983523,36.92,137.59,137.5,217.94]
[1741389983928,36.92,137.59,137.5,254.88]
[1741389984429,0.05186591,137.56,137.53,0.04749391]
[1741389989932,0.05186591,137.56,137.53,7.32059391]
[1741389990134,30.00517342,137.64,137.54,27.13282019]
[1741389990335,66.50517342,137.64,137.54,27.13282019]
[1741389990631,30.00517342,137.64,137.54,27.13282019]
[1741389991036,30.00517342,137.64,137.56,7.2714]
[1741389991336,0.0555234,137.61,137.59,0.05038838]
[1741389991536,0.0555234,137.61,137.6,218.02]
[1741389994233,0.0555234,137.61,137.6,225.2894]
[1741389994441,0.02119667,137.61,137.6,225.2894]
[1741389997545,0.02119667,137.61,137.6,218.02]
[1741389998242,9.35449754,137.65,137.6,218.02]
[1741389998446,100.27255189,137.69,137.63,27.13282019]
[1741389998642,100.27255189,137.69,137.64,7.2673]
[1741389998843,100.27255189,137.69,137.63,27.13282019]
[1741389999146,100.27255189,137.69,137.6,281.01282019]
[1741389999553,0.04628049,137.66,137.63,0.05215089]
[1741390000055,0.04628049,137.66,137.63,27.18497108]
[1741390000548,0.04628049,137.66,137.63,34.45267108]
[1741390000743,0.04628049,137.66,137.63,27.18497108]
[1741390000950,0.04628049,137.66,137.64,7.2673]
[1741390002945,0.04628049,137.66,137.63,27.18497108]
[1741390003145,0.04628049,137.66,137.65,7.2668]
[1741390004742,19.14272398,137.72,137.65,35.84]
[1741390004947,19.14272398,137.72,137.69,27.13282019]
[1741390005153,78.65681491,137.73,137.7,253.92]
[1741390005455,78.65681491,137.75,137.73,7.2622]
[1741390005852,78.65681491,137.75,137.72,7.2631]
[1741390006156,78.7087127,137.75,137.73,0.05010854]
[1741390006349,78.7087127,137.75,137.74,7.262]
[1741390007856,0.05189779,137.75,137.74,43.062]
[1741390008361,78.65681491,137.82,137.77,7.2599]
[1741390008550,78.65681491,137.82,137.74,35.8]
[1741390008756,78.65681491,137.82,137.75,27.13282019]
[1741390009558,0.04686774,137.8,137.79,7.259]
[1741390009859,0.04686774,137.8,137.79,225.139]
[1741390010865,0.04686774,137.8,137.79,217.88]
[1741390012769,0.04686774,137.8,137.79,225.1394]
[1741390013669,6.774e-05,137.8,137.79,225.1394]
[1741390017770,7.7841,137.89,137.82,7.2577]
[1741390017771,7.2555,137.87,137.82,7.2577]
[1741390018268,39.1122,137.88,137.8,7.2587]
[1741390018470,39.1122,137.88,137.79,217.88]
[1741390018869,39.1122,137.88,137.82,0.05258282]
[1741390020065,39.0122,137.88,137.82,0.05258282]
[1741390020566,3.9522,137.88,137.82,0.05258282]
[1741390020763,3.9522,137.88,137.85,7.2558]
[1741390020962,3.9522,137.88,137.81,62.11282019]
[1741390021164,34.98,137.9,137.85,0.05034527]
[1741390021364,34.98,137.9,137.86,7.2555]
[1741390021560,7.2529,137.92,137.87,217.72]
[1741390021868,12.23,137.93,137.87,217.72]
[1741390021869,47.15,137.93,137.87,217.72]
[1741390022069,12.23,137.93,137.88,0.0553054]
[1741390022872,47.13,137.93,137.88,7.3096054]
[1741390023073,47.13,137.93,137.88,0.0553054]
[1741390023972,12.23,137.93,137.88,0.0553054]
[1741390024567,12.23,137.93,137.89,7.2539]
[1741390024766,7.2516,137.94,137.89,7.2539]
[1741390024967,46.8121,137.97,137.9,27.13282019]
[1741390025168,46.8121,137.97,137.92,7.2523]
[1741390025465,4.1753,137.97,137.9,27.13282019]
[1741390025661,4.1753,137.97,137.93,7.30434242]
[1741390026376,4.1753,137.97,137.93,0.05264242]
[1741390026576,27.13282019,137.94,137.72,218.13282019]
[1741390026874,27.13282019,137.91,137.79,27.13282019]
[1741390027072,34.8,137.9,137.79,27.13282019]
[1741390027675,34.8,137.9,137.82,27.13282019]
[1741390027978,0.05128391,137.86,137.85,7.2561]
[1741390028270,7.2557,137.87,137.83,217.62]
[1741390028470,0.04702392,137.87,137.84,0.04765996]
[1741390029573,0.04702392,137.87,137.84,7.30415996]
[1741390029774,0.04702392,137.87,137.84,0.04765996]
[1741390030175,0.04702392,137.87,137.86,7.2557]
[1741390030377,0.04702392,137.87,137.84,0.04765996]
[1741390030577,0.04702392,137.87,137.85,7.2559]
[1741390031174,0.04702392,137.87,137.86,7.2557]
[1741390034278,4.0698,137.92,137.85,61.67282019]
[1741390034475,34.36,137.97,137.88,27.13282019]
[1741390034680,12.1004,137.98,137.89,34.36]
[1741390034977,12.1004,137.98,137.93,7.2519]
[1741390035380,19.3499,137.98,137.93,7.2519]
[1741390035575,19.3499,137.98,137.94,0.05207149]
[1741390035975,12.1004,137.98,137.94,0.05207149]
[1741390036377,12.1004,137.98,137.92,217.6]
[1741390037077,7.252,137.93,137.92,217.6]
[1741390037278,34.22,137.95,137.92,205.0764]
[1741390037483,0.05490546,137.94,137.92,205.0764]
[1741390037786,7.252,137.93,137.92,192.5556]
[1741390037981,7.252,137.93,137.91,0.05264104]
[1741390037982,3.67490546,137.94,137.91,0.05264104]
[1741390038188,7.2526,137.92,137.91,0.05264104]
[1741390038576,10.8726,137.92,137.91,0.05264104]
[1741390038985,7.2526,137.92,137.91,0.05264104]
[1741390040182,7.2523,137.93,137.91,0.05264104]
[1741390040374,41.2523,137.93,137.91,0.05264104]
[1741390040784,33.98,137.93,137.91,0.05264104]
[1741390041176,0.05490546,137.94,137.91,0.05264104]
[1741390041879,7.30690546,137.94,137.91,0.05264104]
[1741390042581,0.05490546,137.94,137.91,7.30554104]
[1741390042785,0.05490546,137.94,137.91,0.05264104]
[1741390043691,0.05490546,137.94,137.92,7.2523]
[1741390043886,0.05490546,137.94,137.91,0.05264104]
[1741390043887,0.05490546,137.94,137.93,217.58]
[1741390044690,29.74906669,137.95,137.93,217.58]
[1741390044691,7.2497,137.98,137.93,217.58]
[1741390044886,29.74906669,137.99,137.93,217.58]
[1741390045088,29.74906669,137.99,137.93,251.32]
[1741390045789,29.74906669,137.99,137.95,0.05110266]
[1741390045994,29.74906669,137.99,137.95,7.30180266]
[1741390046290,29.74906669,137.99,137.95,0.05110266]
[1741390046789,29.74906669,137.99,137.96,7.2501]
[1741390046991,29.74906669,137.99,137.95,0.05110266]
[1741390047487,102.1432816,138.04,137.97,27.13282019]
[1741390047691,102.1432816,138.04,138.0,7.248]
[1741390047990,102.1432816,138.04,137.99,0.04682624]
[1741390048384,102.1432816,138.04,138.01,7.2478]
[1741390048579,102.1432816,138.04,138.01,217.5]
[1741390048983,102.1432816,138.04,138.02,7.2473]
[1741390049189,102.1432816,138.04,138.03,217.5]
[1741390049585,135.6632816,138.04,137.98,3.9554]
[1741390049786,135.6632816,138.04,138.02,0.04872265]
[1741390051484,205.90144882,138.06,138.02,0.04872265]
[1741390051485,7.2453,138.06,138.02,0.04872265]
[1741390051693,33.48,138.07,138.02,0.04872265]
[1741390052580,33.44,138.08,138.02,0.04872265]
[1741390052785,33.44,138.08,138.04,7.2459]
[1741390053181,33.44,138.08,138.05,217.46]
[1741390053387,33.44,138.08,138.05,224.7054]
[1741390053595,33.44,138.08,138.05,224.75890605]
[1741390054889,40.6232,138.1,138.05,224.75890605]
[1741390055090,33.38,138.1,138.05,217.51350605]
[1741390055490,7.2445,138.08,138.05,217.51350605]
[1741390055888,7.2452,138.06,138.05,217.51350605]
[1741390056095,27.13282019,138.07,137.98,3.9554]
[1741390056394,7.2458,138.05,137.98,3.9554]
[1741390057093,7.2455,138.06,137.98,3.9554]
[1741390057295,0.04851861,138.03,138.0,0.05148563]
[1741390057491,193.0,138.09,137.98,3.9554]
[1741390057686,0.05045787,138.03,138.02,7.2471]
[1741390057891,193.0,138.09,137.98,3.9554]
[1741390058198,4.0503,138.12,137.98,3.9554]
[1741390058199,0.05108516,138.04,138.03,7.2468]
[1741390058495,7.243,138.11,138.0,27.13282019]
[1741390058695,4.0503,138.12,138.01,4.0756]
[1741390058993,7.2434,138.1,138.01,4.0756]
[1741390059498,78.65681491,138.11,138.04,0.05498709]
[1741390059794,85.89961491,138.11,138.04,0.05498709]
[1741390059994,78.65681491,138.11,138.04,7.30098709]
[1741390060199,78.65681491,138.11,138.06,27.13282019]
[1741390060591,78.65681491,138.11,138.08,7.2441]
[1741390060786,78.65681491,138.11,138.07,0.05022022]
[1741390061497,78.65681491,138.11,138.09,27.13282019]
[1741390061697,79.76242076,138.16,138.09,27.13282019]
[1741390062094,79.76242076,138.16,138.11,0.04660727]
[1741390062293,79.76242076,138.16,138.12,7.2418]
[1741390063098,79.76242076,138.16,138.15,7.2405]
[1741390063402,113.34858051,138.17,138.15,27.13282019]
[1741390063598,113.34858051,138.17,138.16,7.24]
[1741390063903,113.34858051,138.17,138.15,27.13282019]
[1741390064595,107.09328051,138.17,138.16,7.24]
[1741390064797,7.2359,138.24,138.16,7.24]
[1741390064996,197.0836,138.25,138.15,27.13282019]
[1741390065299,197.0836,138.25,138.12,4.0224]
[1741390065300,4.1028,138.26,138.19,0.049456]
[1741390066407,7.2356,138.25,138.19,0.049456]
[1741390066598,4.1028,138.26,138.19,0.049456]
[1741390067805,8.0078,138.25,138.19,0.049456]
[1741390068004,7.2368,138.23,138.19,0.049456]
[1741390068905,8.0078,138.25,138.19,0.049456]
[1741390069096,35.14062019,138.25,138.19,0.049456]
[1741390069499,35.14062019,138.25,138.13,3.8401]
[1741390069901,27.13282019,138.22,138.09,27.13282019]
[1741390070106,27.13282019,138.22,138.09,31.24712019]
[1741390070302,27.13282019,138.22,138.09,4.1143]
[1741390070496,7.2414,138.14,138.09,11.3577]
[1741390070702,0.05215953,138.17,138.14,0.05024042]
[1741390070898,7.8021,138.18,138.1,7.2429]
[1741390071106,7.29352297,138.14,138.12,0.05009402]
[1741390071302,0.05222297,138.14,138.12,0.05009402]
[1741390071905,7.2415,138.13,138.12,0.05009402]
[1741390072094,0.05222297,138.14,138.12,0.05009402]
[1741390073207,0.05222297,138.14,138.13,7.2415]
[1741390073505,7.2371,138.22,138.12,27.18291421]
[1741390073806,7.2371,138.22,138.09,4.1143]
[1741390073807,4.1432,138.25,138.15,27.13282019]
[1741390074006,7.2362,138.24,138.15,27.13282019]
[1741390074204,4.1432,138.25,138.15,27.13282019]
[1741390074402,4.1432,138.25,138.16,4.0071]
[1741390074604,4.1432,138.25,138.16,8.0306]
[1741390074809,4.1432,138.25,138.19,0.04976936]
[1741390075206,7.2359,138.24,138.19,0.04976936]
[1741390075712,11.3786,138.25,138.19,0.04976936]
[1741390076610,228.18042019,138.28,138.19,0.04976936]
[1741390076611,201.0476,138.28,138.19,0.04976936]
[1741390076807,8.0476,138.28,138.21,7.2371]
[1741390077015,7.2334,138.29,138.22,0.05220884]
[1741390077209,7.2334,138.29,138.18,27.13282019]
[1741390077411,4.1321,138.31,138.24,0.0548326]
[1741390077606,7.233,138.3,138.24,0.0548326]
[1741390078512,7.2332,138.29,138.24,0.0548326]
[1741390078813,31.26492019,138.31,138.24,0.0548326]
[1741390079812,27.13282019,138.28,138.16,8.0306]
[1741390080015,4.1486,138.27,138.17,217.12]
[1741390080616,11.3829,138.27,138.17,217.12]
[1741390080907,0.04902936,138.23,138.21,0.05367902]
[1741390082908,7.2372,138.22,138.19,217.1]
[1741390083219,0.04902936,138.23,138.19,217.1]
[1741390083815,0.04902936,138.23,138.19,210.9586]
[1741390084115,7.2393,138.18,138.13,217.08]
[1741390084315,7.2393,138.18,138.07,27.13282019]
[1741390084316,220.13282019,138.22,138.11,217.08]
[1741390084917,4.0899,138.21,138.11,217.08]
[1741390085109,7.2389,138.18,138.11,217.08]
[1741390085309,0.04919963,138.17,138.15,0.05109126]
[1741390086409,7.24,138.16,138.15,0.05109126]
[1741390086821,3.62,138.16,138.11,217.08]
[1741390087014,30.99662019,138.16,138.05,217.12]
[1741390087215,193.0,138.15,138.05,217.12]
[1741390087516,33.32,138.14,138.07,27.13282019]
[1741390087818,193.0,138.15,138.07,60.45282019]
[1741390088010,193.0,138.15,138.12,7.2421]
[1741390088214,11.1042,138.16,138.12,7.2421]
[1741390088403,0.05229816,138.15,138.12,7.2421]
[1741390088609,0.05229816,138.15,138.12,7.2949073]
[1741390088810,0.05229816,138.15,138.12,0.0528073]
[1741390091722,7.2415,138.13,138.12,0.0528073]
[1741390093218,0.05229816,138.15,138.12,0.0528073]
[1741390093418,7.2411,138.14,138.12,0.0528073]
[1741390093620,0.05229816,138.15,138.12,0.0528073]
[1741390093818,0.05229816,138.15,138.12,7.2947073]
[1741390094022,0.05229816,138.15,138.12,0.0528073]
[1741390096412,0.05229816,138.15,138.13,7.2412]
[1741390096817,0.05229816,138.15,138.13,217.18]
[1741390097421,33.32,138.22,138.13,244.31282019]
[1741390098414,33.32,138.22,138.16,27.18326337]
[1741390098614,4.053,138.25,138.16,27.18326337]
[1741390098615,0.04584728,138.19,138.16,27.18326337]
[1741390098820,44.6087,138.25,138.19,7.2381]
[1741390099030,33.32,138.26,138.16,27.13282019]
[1741390099323,33.32,138.26,138.13,217.18]
[1741390099525,27.13282019,138.25,138.13,217.18]
[1741390099921,0.05541585,138.2,138.18,0.04917641]
[1741390100127,40.5569,138.22,138.18,0.04917641]
[1741390100323,0.0463042,138.2,138.18,0.04917641]
[1741390100520,302.19491835,138.31,138.18,27.1819966]
[1741390100720,230.4862,138.29,138.18,27.13282019]
[1741390101320,5.53709365,138.28,138.18,27.13282019]
[1741390101515,7.2351,138.26,138.2,7.2375]
[1741390101720,0.05312282,138.24,138.22,0.05146339]
[1741390104031,0.05312282,138.24,138.23,7.2363]
[1741390105228,0.05312282,138.24,138.22,0.05146339]
[1741390106124,0.05312282,138.24,138.22,7.28796339]
[1741390106817,0.05312282,138.24,138.22,0.05146339]
[1741390107021,0.05312282,138.24,138.23,7.2363]
[1741390107430,0.05312282,138.24,138.22,0.05146339]
[1741390107831,7.28912282,138.24,138.22,0.05146339]
[1741390108030,0.05312282,138.24,138.22,0.05146339]
[1741390108231,7.28932282,138.24,138.22,0.05146339]
[1741390108627,0.05312282,138.24,138.22,0.05146339]
[1741390110632,7.28912282,138.24,138.22,0.05146339]
[1741390111434,7.2363,138.23,138.22,0.05146339]
[1741390112634,0.05312282,138.24,138.21,217.12]
[1741390112833,7.2368,138.22,138.21,217.12]
[1741390114234,7.2368,138.22,138.21,210.7573]
[1741390118137,7.2368,138.22,138.21,199.7866]
[1741390119239,7.2373,138.21,138.2,0.04579064]
[1741390119438,40.5373,138.21,138.2,0.04579064]
[1741390122436,40.5373,138.21,138.2,9.064e-05]
[1741390122644,7.2398,138.17,138.15,217.1]
[1741390122934,33.3,138.16,138.15,217.1]
[1741390123530,33.3,138.16,138.15,224.3405]
[1741390128945,33.3,138.16,138.15,217.1]
[1741390129333,40.54,138.16,138.15,217.1]
[1741390129541,33.3,138.16,138.09,217.14]
[1741390129937,7.2402,138.16,138.09,217.14]
[1741390130147,33.28,138.15,138.09,217.14]
[1741390130751,0.04997564,138.13,138.11,0.04632482]
[1741390131047,0.04997564,138.13,138.11,7.28852482]
[1741390131350,0.04997564,138.13,138.11,0.04632482]
[1741390132149,33.32997564,138.13,138.11,0.04632482]
[1741390134254,33.32997564,138.13,138.11,7.28892482]
[1741390134450,33.32997564,138.13,138.11,0.04632482]
[1741390135545,7.2421,138.12,138.11,0.04632482]
[1741390135960,7.2431,138.1,138.09,217.14]
[1741390136549,33.32997564,138.13,138.09,217.14]
[1741390136744,33.32997564,138.13,138.06,3.9519]
[1741390136941,7.2424,138.12,138.09,7.2431]
[1741390137142,33.32997564,138.13,138.08,0.05461487]
[1741390137348,0.04997564,138.13,138.08,0.05461487]
[1741390137548,0.04997564,138.13,138.12,7.2421]
[1741390138553,0.04997564,138.13,138.11,0.0469745]
[1741390142157,16.98946593,138.2,138.11,0.0469745]
[1741390142356,7.2396,138.17,138.09,7.2433]
[1741390142555,7.2396,138.17,138.09,40.5233]
[1741390143062,40.5196,138.17,138.09,40.5233]
[1741390143465,0.04901344,138.14,138.12,0.0459531]
[1741390145263,0.04901344,138.14,138.12,217.2459531]
[1741390147664,33.28,138.17,138.12,217.2459531]
[1741390147864,33.28,138.17,138.13,4.0501]
[1741390148454,33.28,138.17,138.14,7.241]
[1741390148655,33.28,138.17,138.13,4.0501]
[1741390148868,33.33211871,138.17,138.12,217.2459531]
[1741390149472,16.98946593,138.16,138.12,217.2459531]
[1741390150566,33.33211871,138.17,138.12,217.2459531]
[1741390151371,33.33211871,138.17,138.14,7.2406]
[1741390151973,33.33211871,138.17,138.12,217.2459531]
[1741390152568,7.2406,138.15,138.12,217.2459531]
[1741390153271,7.2401,138.16,138.13,7.2414]
[1741390153470,33.33211871,138.17,138.12,217.2459531]
[1741390154364,0.05211871,138.17,138.12,217.2459531]
[1741390154561,0.05211871,138.17,138.14,7.2407]
[1741390155766,193.0,138.21,138.14,7.2407]
[1741390155973,33.26,138.21,138.15,3.8717]
[1741390156788,7.2395,138.17,138.15,3.8717]
[1741390156972,0.04993641,138.19,138.17,0.04973245]
[1741390157289,7.2389,138.18,138.17,0.04973245]
[1741390158890,24.22836593,138.18,138.17,0.04973245]
[1741390159090,16.98946593,138.18,138.12,217.2]
[1741390159289,33.24,138.17,138.12,217.2]
[1741390159806,33.24,138.17,138.13,3.9176]
[1741390160205,0.04817957,138.16,138.14,0.05291237]
[1741390161207,0.04817957,138.16,138.05,9.9340124]
[1741390161208,226.97893186,138.15,138.05,9.9340124]
[1741390161411,16.98946593,138.07,138.05,9.9340124]
[1741390161602,50.22946593,138.07,138.05,9.9340124]
[1741390162006,33.24,138.07,138.05,9.9340124]
[1741390162399,33.28820913,138.07,138.05,9.98563755]
[1741390163799,33.28820913,138.07,138.05,0.05162515]
[1741390172979,33.28820913,138.07,138.01,3.8817]
[1741390173877,0.04820913,138.07,138.04,7.246]
[1741390174276,0.04820913,138.07,138.03,0.05576846]
[1741390174983,0.04820913,138.07,138.04,7.2458]
[1741390175384,0.04820913,138.07,138.03,0.05576846]
[1741390175786,0.04820913,138.07,138.04,7.2462]
[1741390175981,0.04820913,138.07,138.03,0.05576846]
[1741390176385,0.04820913,138.07,138.06,7.2452]
[1741390176883,226.24,138.14,138.03,27.28490368]
[1741390177075,193.0,138.14,138.03,27.22913522]
[1741390177274,226.24,138.14,138.03,27.22913522]
[1741390177479,226.24,138.14,138.06,27.22913522]
[1741390177683,226.24,138.14,138.07,7.8858]
[1741390177987,226.24,138.14,138.09,0.05277131]
[1741390177988,0.05079298,138.12,138.09,0.05277131]
[1741390179282,273.67938985,138.19,138.1,33.24]
[1741390179485,47.43938985,138.19,138.1,33.24]
[1741390179987,47.43938985,138.19,138.17,7.2394]
[1741390180287,47.49371312,138.19,138.17,0.05346209]
[1741390180790,0.05432327,138.19,138.18,7.2389]
[1741390182486,0.05432327,138.19,138.17,0.05346209]
[1741390183283,33.22,138.18,138.1,217.24]
[1741390184389,0.04641035,138.15,138.13,0.05396381]
[1741390184891,0.04641035,138.15,138.13,7.29516381]
[1741390185884,0.04641035,138.15,138.14,7.241]
[1741390186086,33.2,138.2,138.13,0.05396381]
[1741390186286,33.2,138.21,138.2,7.2378]
[1741390186481,33.2,138.23,138.2,7.2378]
[1741390186691,7.235,138.26,138.12,60.42913522]
[1741390186990,33.2,138.25,138.2,7.2376]
[1741390187185,33.2,138.24,138.2,7.2376]
[1741390187388,33.24827143,138.24,138.18,217.22]
[1741390187588,33.24827143,138.24,138.21,7.28668485]
[1741390188793,33.24827143,138.24,138.21,7.28638485]
[1741390188993,0.04827143,138.24,138.21,7.28638485]
[1741390191785,0.04827143,138.24,138.22,7.2368]
[1741390191990,0.04827143,138.24,138.21,0.04938485]
[1741390192398,0.04827143,138.24,138.22,7.2366]
[1741390192597,0.04827143,138.24,138.21,0.04938485]
[1741390192799,0.04827143,138.24,138.23,7.2363]
[1741390193097,233.414,138.28,138.21,0.04938485]
[1741390193486,233.414,138.28,138.23,7.236]
[1741390193892,7.2342,138.27,138.23,7.236]
[1741390194087,0.05368423,138.26,138.24,0.04755153]
[1741390194297,33.18,138.33,138.24,0.04755153]
[1741390194599,7.2324,138.31,138.23,3.9736]
[1741390194801,7.2324,138.31,138.26,7.2347]
[1741390195099,7.2324,138.31,138.26,224.3547]
[1741390195400,7.2337,138.28,138.27,0.04844864]
[1741390197296,33.16,138.29,138.27,0.04844864]
[1741390197494,0.05098873,138.3,138.27,0.04844864]
[1741390198000,7.2337,138.28,138.27,0.04844864]
[1741390198197,40.3937,138.28,138.27,0.04844864]
[1741390198800,33.16,138.28,138.2,217.12]
[1741390200002,0.05207238,138.25,138.23,0.04879068]
[1741390201198,7.28787238,138.25,138.23,0.04879068]
[1741390201402,27.22913522,138.33,138.23,0.04879068]
[1741390201699,27.22913522,138.33,138.2,217.12]
[1741390201700,7.2329,138.3,138.26,7.2343]
[1741390202203,7.2329,138.3,138.22,27.22913522]
[1741390202402,7.2329,138.3,138.26,7.2343]
[1741390202604,0.05334609,138.27,138.25,0.05432982]
[1741390202811,33.16,138.32,138.25,0.05432982]
[1741390203006,0.04813349,138.27,138.25,0.05432982]
[1741390203209,0.05100401,138.3,138.25,0.05432982]
[1741390203708,7.2341,138.28,138.25,7.28952982]
[1741390204111,0.05100401,138.3,138.25,7.28952982]
[1741390204311,7.28370401,138.3,138.27,7.2339]
[1741390204512,0.05100401,138.3,138.25,0.05432982]
[1741390205912,7.2347,138.26,138.25,0.05432982]
[1741390206113,40.3747,138.26,138.25,0.05432982]
[1741390206813,33.14,138.26,138.25,0.05432982]
[1741390207407,40.3747,138.26,138.25,0.05432982]
[1741390215525,33.14,138.26,138.25,0.05432982]
[1741390216323,40.3747,138.26,138.25,0.05432982]
[1741390218852,33.14,138.26,138.25,0.05432982]
[1741390219455,40.3747,138.26,138.25,0.05432982]
[1741390221559,40.3747,138.26,138.25,7.28952982]
[1741390221560,33.14,138.26,138.25,7.28952982]
[1741390221854,0.04612262,138.27,138.25,7.28952982]
[1741390222246,0.04612262,138.27,138.26,7.2347]
[1741390223563,40.3326,138.31,138.28,7.2335]
[1741390224159,132.26671209,138.34,138.23,16.96671209]
[1741390224460,33.1,138.32,138.25,16.96671209]
[1741390224659,0.02775593,138.3,138.27,0.04660795]
[1741390225162,0.02775593,138.3,138.28,7.2334]
[1741390225953,0.02775593,138.3,138.27,0.04660795]
[1741390226161,16.99446802,138.3,138.27,0.04660795]
[1741390226958,7.2337,138.28,138.27,0.04660795]
[1741390227157,45.89318588,138.28,138.27,0.04660795]
[1741390228749,62.85989797,138.28,138.27,0.04660795]
[1741390228942,59.24619797,138.28,138.2,217.12]
[1741390229252,16.96671209,138.26,138.2,224.3576]
[1741390229636,7.2364,138.23,138.2,224.3576]
[1741390229838,5.55948588,138.25,138.2,217.12]
[1741390230042,33.08,138.26,138.2,217.12]
[1741390230340,0.04832884,138.24,138.21,0.05417545]
[1741390230636,29.71088189,138.33,138.23,16.96671209]
[1741390230837,29.71088189,138.33,138.24,36.9287]
[1741390231032,29.71088189,138.33,138.25,16.96671209]